fUST/lending_fUST_20240425
["ID","MTS","AMOUNT","RATE_DAILY","PERIOD"]
[323462464,1714015854578,-500.0,0.00016712,2]
[323462465,1714015854587,-500.0,0.00016712,2]
[323462466,1714015854596,-298.35989427,0.00016712,2]
[323462467,1714015854606,-500.0,0.00016712,2]
[323462468,1714015854614,-500.0,0.00016712,2]
[323462469,1714015854624,-979.08,0.00016712,2]
[323462470,1714015854633,-508.55990883,0.00016712,2]
[323462471,1714015854642,-541.84,0.00016712,2]
[323462472,1714015854652,-500.0,0.00016712,2]
[323462473,1714015854661,-278.94704578,0.00016712,2]
[323462474,1714015854669,-553.34,0.00016712,2]
[323462475,1714015854678,-500.0,0.00016712,2]
[323462476,1714015854687,-500.0,0.00016712,2]
[323462477,1714015854696,-500.0,0.00016712,2]
[323462478,1714015854705,-500.0,0.00016712,2]
[323462479,1714015854714,-989.47,0.00016712,2]
[323462480,1714015854723,-500.0,0.00016712,2]
[323462481,1714015854732,-503.89493166,0.00016712,2]
[323462482,1714015854742,-500.0,0.00016712,2]
[323462483,1714015854751,-500.0,0.00016712,2]
[323462484,1714015854760,-500.80978088,0.00016712,2]
[323462485,1714015854771,-293.02179562,0.00016712,2]
[323462486,1714015854780,-812.49,0.00016712,2]
[323462487,1714015854790,-501.43462668,0.00016712,2]
[323462488,1714015854799,-500.0,0.00016712,2]
[323462489,1714015854809,-791.19,0.00016712,2]
[323462490,1714015854819,-500.0,0.00016712,2]
[323462491,1714015854831,-500.0,0.00016712,2]
[323462492,1714015854841,-500.0,0.00016712,2]
[323462493,1714015854850,-625.21,0.00016712,2]
[323462494,1714015854860,-500.0,0.00016712,2]
[323462495,1714015854870,-500.0,0.00016712,2]
[323462496,1714015854879,-500.0,0.00016712,2]
[323462497,1714015854889,-500.0,0.00016712,2]
[323462498,1714015854899,-604.15852301,0.00016712,2]
[323462499,1714015854909,-502.97467341,0.00016712,2]
[323462500,1714015854918,-695.3,0.00016712,2]
[323462501,1714015854928,-500.51645946,0.00016712,2]
[323462502,1714015854937,-576.67,0.00016712,2]
[323462503,1714015854946,-500.0,0.00016712,2]
[323462504,1714015854956,-501.49483959,0.00016712,2]
[323462505,1714015854967,-500.0,0.00016712,2]
[323462506,1714015854976,-500.0,0.00016712,2]
[323462507,1714015854985,-500.0,0.00016712,2]
[323462508,1714015854995,-500.0,0.00016712,2]
[323462509,1714015855005,-500.0,0.00016712,2]
[323462510,1714015855015,-361.34516916,0.00016712,2]
[323462511,1714015855025,-500.0,0.00016712,2]
[323462512,1714015855034,-500.0,0.00016712,2]
[323462513,1714015855045,-500.0,0.00016712,2]
[323462514,1714015855054,-500.0,0.00016712,2]
[323462515,1714015855063,-250.06292161,0.00016712,2]
[323462516,1714015855073,-500.0,0.00016712,2]
[323462517,1714015855082,-500.0,0.00016712,2]
[323462518,1714015855091,-500.0,0.00016712,2]
[323462519,1714015855101,-500.0,0.00016712,2]
[323462520,1714015855110,-500.0,0.00016712,2]
[323462521,1714015855120,-500.0,0.00016712,2]
[323462522,1714015855129,-500.0,0.00016712,2]
[323462523,1714015855138,-500.0,0.00016712,2]
[323462524,1714015855147,-357.78392428,0.00016712,2]
[323462525,1714015855157,-500.81973096,0.00016712,2]
[323462526,1714015855166,-500.0,0.00016712,2]
[323462527,1714015855176,-387.23802474,0.00016712,2]
[323462528,1714015855186,-500.0,0.00016712,2]
[323462529,1714015855195,-500.0,0.00016712,2]
[323462530,1714015855204,-617.48,0.00016712,2]
[323462531,1714015855214,-500.0,0.00016712,2]
[323462532,1714015855223,-500.0,0.00016712,2]
[323462533,1714015855233,-500.0,0.00016712,2]
[323462534,1714015855242,-2111.77,0.00016712,2]
[323462535,1714015855251,-500.99555878,0.00016712,2]
[323462536,1714015855261,-500.0,0.00016712,2]
[323462537,1714015855270,-500.0,0.00016712,2]
[323462538,1714015855280,-500.0,0.00016712,2]
[323462539,1714015855290,-500.0,0.00016712,2]
[323462540,1714015855302,-500.0,0.00016712,2]
[323462541,1714015855312,-561.09,0.00016712,2]
[323462542,1714015855322,-500.0,0.00016712,2]
[323462543,1714015855331,-612.38,0.00016712,2]
[323462544,1714015855342,-526.96,0.00016712,2]
[323462545,1714015855351,-500.0,0.00016712,2]
[323462546,1714015855361,-501.00075449,0.00016712,2]
[323462547,1714015855371,-500.0,0.00016712,2]
[323462548,1714015855381,-500.0,0.00016712,2]
[323462549,1714015855391,-500.0,0.00016712,2]
[323462550,1714015855400,-500.0,0.00016712,2]
[323462551,1714015855410,-722.57,0.00016712,2]
[323462552,1714015855420,-500.0,0.00016712,2]
[323462553,1714015855429,-500.0,0.00016712,2]
[323462554,1714015855439,-500.0,0.00016712,2]
[323462555,1714015855448,-500.0,0.00016712,2]
[323462556,1714015855458,-500.0,0.00016712,2]
[323462557,1714015855467,-500.95084276,0.00016712,2]
[323462558,1714015855478,-500.97745278,0.00016712,2]
[323462559,1714015855487,-839.34,0.00016712,2]
[323462560,1714015855498,-500.0,0.00016712,2]
[323462561,1714015855507,-500.0,0.00016712,2]
[323462562,1714015855517,-833.47,0.00016712,2]
[323462563,1714015855527,-500.0,0.00016712,2]
[323462564,1714015855537,-507.55995663,0.00016712,2]
[323462565,1714015855550,-500.0,0.00016712,2]
[323462566,1714015855559,-500.0,0.00016712,2]
[323462567,1714015855568,-500.0,0.00016712,2]
[323462568,1714015855577,-500.0,0.00016712,2]
[323462569,1714015855587,-500.0,0.00016712,2]
[323462570,1714015855596,-500.0,0.00016712,2]
[323462571,1714015855730,-500.0,0.00016712,2]
[323462572,1714015855740,-500.0,0.00016712,2]
[323462573,1714015855749,-500.0,0.00016712,2]
[323462574,1714015855759,-500.0,0.00016712,2]
[323462575,1714015855768,-500.0,0.00016712,2]
[323462576,1714015855778,-500.0,0.00016712,2]
[323462577,1714015855787,-500.0,0.00016712,2]
[323462578,1714015855800,-500.0,0.00016712,2]
[323462579,1714015855809,-502.76732832,0.00016712,2]
[323462580,1714015855818,-873.43,0.00016712,2]
[323462581,1714015855831,-500.0,0.00016712,2]
[323462582,1714015855840,-500.0,0.00016712,2]
[323462583,1714015855850,-500.0,0.00016712,2]
[323462584,1714015855860,-500.0,0.00016712,2]
[323462585,1714015855871,-504.26846698,0.00016712,2]
[323462586,1714015855881,-629.3530652,0.00016712,2]
[323462587,1714015855891,-509.19798807,0.00016712,2]
[323462588,1714015855903,-923.2,0.00016712,2]
[323462589,1714015855912,-501.00358954,0.00016712,2]
[323462590,1714015855922,-500.0,0.00016712,2]
[323462591,1714015855932,-500.0,0.00016712,2]
[323462592,1714015855941,-500.0,0.00016712,2]
[323462593,1714015855951,-500.90967117,0.00016712,2]
[323462594,1714015855960,-500.0,0.00016712,2]
[323462595,1714015855970,-500.0,0.00016712,2]
[323462596,1714015855979,-517.8856907,0.00016712,2]
[323462597,1714015855988,-609.7,0.00016712,2]
[323462598,1714015855998,-500.45537303,0.00016712,2]
[323462599,1714015856007,-500.0,0.00016712,2]
[323462600,1714015856017,-500.0,0.00016712,2]
[323462601,1714015856027,-500.0,0.00016712,2]
[323462602,1714015856037,-500.0,0.00016712,2]
[323462603,1714015856048,-789.46,0.00016712,2]
[323462604,1714015856057,-500.0,0.00016712,2]
[323462605,1714015856066,-637.04,0.00016712,2]
[323462606,1714015856076,-500.0,0.00016712,2]
[323462607,1714015856085,-500.0,0.00016712,2]
[323462608,1714015856094,-500.0,0.00016712,2]
[323462609,1714015856103,-500.0,0.00016712,2]
[323462610,1714015856112,-500.0,0.00016712,2]
[323462611,1714015856121,-500.0,0.00016712,2]
[323462612,1714015856130,-526.05616049,0.00016712,2]
[323462613,1714015856140,-500.0,0.00016712,2]
[323462614,1714015856149,-708.14,0.00016712,2]
[323462615,1714015856158,-500.83608447,0.00016712,2]
[323462616,1714015856168,-500.0,0.00016712,2]
[323462617,1714015856179,-500.0,0.00016712,2]
[323462618,1714015856188,-500.0,0.00016712,2]
[323462619,1714015856197,-500.0,0.00016712,2]
[323462620,1714015856206,-500.0,0.00016712,2]
[323462621,1714015856216,-500.0,0.00016712,2]
[323462622,1714015856227,-776.85,0.00016712,2]
[323462623,1714015856237,-500.0,0.00016712,2]
[323462624,1714015856248,-494.53181125,0.00016712,2]
[323462625,1714015856258,-238.16405116,0.00016712,2]
[323462626,1714015856268,-500.43553065,0.00016712,2]
[323462627,1714015856278,-431.68662123,0.00016712,2]
[323462628,1714015856288,-500.53945622,0.00016712,2]
[323462629,1714015856298,-500.0,0.00016712,2]
[323462630,1714015856309,-620.0,0.00016712,2]
[323462631,1714015856319,-500.0,0.00016712,2]
[323462632,1714015856329,-500.0,0.00016712,2]
[323462633,1714015856339,-500.0,0.00016712,2]
[323462634,1714015856349,-500.0,0.00016712,2]
[323462635,1714015856359,-500.0,0.00016712,2]
[323462636,1714015856369,-500.0,0.00016712,2]
[323462637,1714015856381,-500.0,0.00016712,2]
[323462638,1714015856392,-500.0,0.00016712,2]
[323462639,1714015856403,-500.0,0.00016712,2]
[323462640,1714015856415,-500.0,0.00016712,2]
[323462641,1714015856427,-878.46,0.00016712,2]
[323462642,1714015856438,-500.0,0.00016712,2]
[323462643,1714015856449,-500.65452971,0.00016712,2]
[323462644,1714015856459,-500.0,0.00016712,2]
[323462645,1714015856468,-500.0,0.00016712,2]
[323462646,1714015856479,-500.0,0.00016712,2]
[323462647,1714015856490,-500.0,0.00016712,2]
[323462648,1714015856500,-500.0,0.00016712,2]
[323462649,1714015856510,-500.0,0.00016712,2]
[323462650,1714015856521,-618.42,0.00016712,2]
[323462651,1714015856533,-500.50854663,0.00016712,2]
[323462652,1714015856545,-500.0,0.00016712,2]
[323462653,1714015856556,-500.0,0.00016712,2]
[323462654,1714015856566,-1170.72,0.00016712,2]
[323462655,1714015856576,-500.0,0.00016712,2]
[323462656,1714015856587,-500.0,0.00016712,2]
[323462657,1714015856599,-500.0,0.00016712,2]
[323462658,1714015856609,-807.82,0.00016712,2]
[323462659,1714015856620,-500.0,0.00016712,2]
[323462660,1714015856630,-500.0,0.00016712,2]
[323462661,1714015856641,-500.0,0.00016712,2]
[323462662,1714015856652,-503.53957857,0.00016712,2]
[323462663,1714015856664,-500.0,0.00016712,2]
[323462664,1714015856675,-500.0,0.00016712,2]
[323462665,1714015856685,-864.45,0.00016712,2]
[323462666,1714015856695,-500.0,0.00016712,2]
[323462667,1714015856707,-500.0,0.00016712,2]
[323462668,1714015856717,-500.0,0.00016712,2]
[323462669,1714015856727,-500.0,0.00016712,2]
[323462670,1714015856737,-516.81,0.00016712,2]
[323462671,1714015856747,-500.0,0.00016712,2]
[323462672,1714015856756,-465.34707129,0.00016712,2]
[323462673,1714015856766,-500.0,0.00016712,2]
[323462674,1714015856776,-547.34,0.00016712,2]
[323462675,1714015856786,-500.0,0.00016712,2]
[323462676,1714015856797,-500.0,0.00016712,2]
[323462677,1714015856807,-500.0,0.00016712,2]
[323462678,1714015856817,-816.96,0.00016712,2]
[323462679,1714015856830,-10480.8,0.00016712,2]
[323462680,1714015856840,-500.0,0.00016712,2]
[323462681,1714015856851,-500.0,0.00016712,2]
[323462682,1714015856861,-500.0,0.00016712,2]
[323462683,1714015856872,-500.0,0.00016712,2]
[323462684,1714015856883,-514.39830729,0.00016712,2]
[323462685,1714015856895,-500.0,0.00016712,2]
[323462686,1714015856905,-500.0,0.00016712,2]
[323462687,1714015856916,-500.0,0.00016712,2]
[323462688,1714015856926,-500.0,0.00016712,2]
[323462689,1714015856937,-500.0,0.00016712,2]
[323462690,1714015856948,-500.0,0.00016712,2]
[323462691,1714015856957,-500.0,0.00016712,2]
[323462692,1714015856968,-500.0,0.00016712,2]
[323462693,1714015856978,-487.62682537,0.00016712,2]
[323462694,1714015856988,-500.0,0.00016712,2]
[323462695,1714015856998,-580.11,0.00016712,2]
[323462696,1714015857008,-500.0,0.00016712,2]
[323462697,1714015857018,-500.0,0.00016712,2]
[323462698,1714015857028,-500.0,0.00016712,2]
[323462699,1714015857038,-500.0,0.00016712,2]
[323462700,1714015857050,-500.0,0.00016712,2]
[323462701,1714015857059,-500.0,0.00016712,2]
[323462702,1714015857069,-500.0,0.00016712,2]
[323462703,1714015857080,-500.0,0.00016712,2]
[323462704,1714015857090,-500.0,0.00016712,2]
[323462705,1714015857101,-500.0,0.00016712,2]
[323462706,1714015857111,-500.0,0.00016712,2]
[323462707,1714015857121,-500.0,0.00016712,2]
[323462708,1714015857131,-562.62,0.00016712,2]
[323462709,1714015857141,-500.0,0.00016712,2]
[323462710,1714015857150,-500.0,0.00016712,2]
[323462711,1714015857160,-500.0,0.00016712,2]
[323462712,1714015857170,-500.0,0.00016712,2]
[323462713,1714015857179,-501.60194041,0.00016712,2]
[323462714,1714015857189,-500.0,0.00016712,2]
[323462715,1714015857199,-500.17538038,0.00016712,2]
[323462716,1714015857209,-500.0,0.00016712,2]
[323462717,1714015857220,-500.0,0.00016712,2]
[323462718,1714015857230,-663.33,0.00016712,2]
[323462719,1714015857241,-500.0,0.00016712,2]
[323462720,1714015857251,-500.0,0.00016712,2]
[323462721,1714015857261,-691.68,0.00016712,2]
[323462722,1714015857271,-500.0,0.00016712,2]
[323462723,1714015857282,-652.2,0.00016712,2]
[323462724,1714015857293,-525.26494835,0.00016712,2]
[323462725,1714015857302,-500.0,0.00016712,2]
[323462726,1714015857312,-500.0,0.00016712,2]
[323462727,1714015857322,-528.90998398,0.00016712,2]
[323462728,1714015857331,-512.66341726,0.00016712,2]
[323462729,1714015857341,-500.0,0.00016712,2]
[323462730,1714015857351,-500.0,0.00016712,2]
[323462731,1714015857361,-500.0,0.00016712,2]
[323462732,1714015857372,-500.0,0.00016712,2]
[323462733,1714015857381,-500.0,0.00016712,2]
[323462734,1714015857391,-500.0,0.00016712,2]
[323462735,1714015857400,-505.56941948,0.00016712,2]
[323462736,1714015857410,-500.0,0.00016712,2]
[323462737,1714015857419,-500.0,0.00016712,2]
[323462738,1714015857430,-500.0,0.00016712,2]
[323462739,1714015857440,-500.0,0.00016712,2]
[323462740,1714015857451,-500.0,0.00016712,2]
[323462741,1714015857460,-637.24,0.00016712,2]
[323462742,1714015857470,-500.0,0.00016712,2]
[323462743,1714015857479,-500.0,0.00016712,2]
[323462744,1714015857490,-500.0,0.00016712,2]
[323462745,1714015857500,-500.0,0.00016712,2]
[323462746,1714015857510,-500.0,0.00016712,2]
[323462747,1714015857520,-1073.69165725,0.0001679,2]
[323462748,1714015857531,-620.0,0.00016846,2]
[323462749,1714015857543,-500.0,0.00016986,2]
[323462750,1714015857553,-500.0,0.00016986,2]
[323462751,1714015857563,-500.0,0.00016986,2]
[323462752,1714015857574,-500.0,0.00016986,2]
[323462753,1714015857584,-507.92181483,0.00016986,2]
[323462754,1714015857595,-500.90241179,0.00016986,2]
[323462755,1714015857605,-500.0,0.00016986,2]
[323462756,1714015857616,-505.35122962,0.00016986,2]
[323462757,1714015857626,-500.0,0.00016986,2]
[323462758,1714015857636,-504.56330222,0.00016986,2]
[323462759,1714015857646,-500.97847853,0.00016986,2]
[323462760,1714015857657,-500.0,0.00016986,2]
[323462761,1714015857668,-549.34813269,0.00016986,2]
[323462762,1714015857678,-500.0,0.00016986,2]
[323462763,1714015857689,-500.0,0.00016986,2]
[323462764,1714015857699,-500.0,0.00016986,2]
[323462765,1714015857710,-500.0,0.00016986,2]
[323462766,1714015857720,-500.0,0.00016986,2]
[323462767,1714015857730,-386.55915127,0.00016986,2]
[323462768,1714015857740,-500.0,0.00016986,2]
[323462769,1714015857750,-500.0,0.00016986,2]
[323462770,1714015857760,-500.0,0.00016986,2]
[323462771,1714015857770,-500.0,0.00016986,2]
[323462772,1714015857779,-500.0,0.00016986,2]
[323462773,1714015857790,-500.0,0.00016986,2]
[323462774,1714015857804,-400.2738879,0.00016986,2]
[323462775,1714015857813,-500.0,0.00016986,2]
[323462776,1714015857824,-500.0,0.00016986,2]
[323462777,1714015857835,-500.0,0.00016986,2]
[323462778,1714015857845,-500.0,0.00016986,2]
[323462779,1714015857855,-1283.36,0.00016986,2]
[323462780,1714015857866,-500.0,0.00016986,2]
[323462781,1714015857876,-500.0,0.00016986,2]
[323462782,1714015857885,-570.30992023,0.00016986,2]
[323462783,1714015857895,-500.0,0.00016986,2]
[323462784,1714015857906,-670.39,0.00016986,2]
[323462785,1714015857916,-319.84056432,0.00016986,2]
[323462786,1714015857926,-500.0,0.00016986,2]
[323462787,1714015857936,-500.0,0.00016986,2]
[323462788,1714015857945,-412.94165774,0.00016986,2]
[323462789,1714015857956,-503.10320104,0.00016986,2]
[323462790,1714015857965,-500.0,0.00016986,2]
[323462791,1714015857975,-500.0,0.00016986,2]
[323462792,1714015857984,-500.0,0.00016986,2]
[323462793,1714015857995,-500.0,0.00016986,2]
[323462794,1714015858005,-500.0,0.00016986,2]
[323462795,1714015858015,-500.0,0.00016986,2]
[323462796,1714015858025,-500.0,0.00016986,2]
[323462797,1714015858035,-500.0,0.00016986,2]
[323462798,1714015858047,-500.0,0.00016986,2]
[323462799,1714015858056,-500.0,0.00016986,2]
[323462800,1714015858066,-534.4,0.00016986,2]
[323462801,1714015858075,-836.59,0.00016986,2]
[323462802,1714015858086,-500.0,0.00016986,2]
[323462803,1714015858098,-500.0,0.00016986,2]
[323462804,1714015858108,-500.0,0.00016986,2]
[323462805,1714015858119,-500.0,0.00016986,2]
[323462806,1714015858129,-500.0,0.00016986,2]
[323462807,1714015858139,-562.51,0.00016986,2]
[323462808,1714015858149,-500.0,0.00016986,2]
[323462809,1714015858159,-500.0,0.00016986,2]
[323462810,1714015858170,-500.0,0.00016986,2]
[323462811,1714015858181,-500.0,0.00016986,2]
[323462812,1714015858192,-500.0,0.00016986,2]
[323462813,1714015858203,-151.0,0.00016986,2]
[323462814,1714015858213,-597.91,0.00016986,2]
[323462815,1714015858224,-500.0,0.00016986,2]
[323462816,1714015858233,-500.0,0.00016986,2]
[323462817,1714015858244,-500.0,0.00016986,2]
[323462818,1714015858253,-500.0,0.00016986,2]
[323462819,1714015858262,-500.0,0.00016986,2]
[323462820,1714015858271,-504.70605955,0.00016986,2]
[323462821,1714015858281,-500.0,0.00016986,2]
[323462822,1714015858291,-500.0,0.00016986,2]
[323462823,1714015858304,-500.0,0.00016986,2]
[323462824,1714015858313,-500.0,0.00016986,2]
[323462825,1714015858322,-500.0,0.00016986,2]
[323462826,1714015858333,-747.74,0.00016986,2]
[323462827,1714015858344,-500.0,0.00016986,2]
[323462828,1714015858355,-500.0,0.00016986,2]
[323462829,1714015858367,-500.0,0.00016986,2]
[323462830,1714015858378,-500.0,0.00016986,2]
[323462831,1714015858389,-501.59295325,0.00016986,2]
[323462832,1714015858400,-979.08,0.00016986,2]
[323462833,1714015858409,-541.84,0.00016986,2]
[323462834,1714015858420,-500.0,0.00016986,2]
[323462835,1714015858429,-553.34,0.00016986,2]
[323462836,1714015858440,-500.0,0.00016986,2]
[323462837,1714015858451,-500.0,0.00016986,2]
[323462838,1714015858461,-500.0,0.00016986,2]
[323462839,1714015858471,-500.0,0.00016986,2]
[323462840,1714015858481,-989.47,0.00016986,2]
[323462841,1714015858491,-500.0,0.00016986,2]
[323462842,1714015858500,-500.0,0.00016986,2]
[323462843,1714015858511,-502.83295048,0.00016986,2]
[323462844,1714015858521,-812.49,0.00016986,2]
[323462845,1714015858531,-500.69538492,0.00016986,2]
[323462846,1714015858541,-791.19,0.00016986,2]
[323462847,1714015858554,-500.0,0.00016986,2]
[323462848,1714015858564,-500.0,0.00016986,2]
[323462849,1714015858574,-500.0,0.00016986,2]
[323462850,1714015858693,-625.21,0.00016986,2]
[323462851,1714015858715,-500.0,0.00016986,2]
[323462852,1714015858724,-500.0,0.00016986,2]
[323462853,1714015858733,-500.0,0.00016986,2]
[323462854,1714015858743,-500.0,0.00016986,2]
[323462855,1714015858752,-695.3,0.00016986,2]
[323462856,1714015858762,-500.0,0.00016986,2]
[323462857,1714015858771,-576.67,0.00016986,2]
[323462858,1714015858779,-500.0,0.00016986,2]
[323462859,1714015858789,-500.0,0.00016986,2]
[323462860,1714015858800,-500.0,0.00016986,2]
[323462861,1714015858809,-500.0,0.00016986,2]
[323462862,1714015858818,-500.0,0.00016986,2]
[323462863,1714015858831,-500.0,0.00016986,2]
[323462864,1714015858840,-500.0,0.00016986,2]
[323462865,1714015858849,-500.0,0.00016986,2]
[323462866,1714015858859,-500.0,0.00016986,2]
[323462867,1714015858868,-500.0,0.00016986,2]
[323462868,1714015858877,-500.0,0.00016986,2]
[323462869,1714015858886,-500.0,0.00016986,2]
[323462870,1714015858895,-500.0,0.00016986,2]
[323462871,1714015858904,-211.60024392,0.00016986,2]
[323462872,1714015858914,-500.0,0.00016986,2]
[323462873,1714015858923,-500.0,0.00016986,2]
[323462874,1714015858932,-500.0,0.00016986,2]
[323462875,1714015858941,-500.0,0.00016986,2]
[323462876,1714015858950,-500.0,0.00016986,2]
[323462877,1714015858960,-500.0,0.00016986,2]
[323462878,1714015858969,-617.48,0.00016986,2]
[323462879,1714015858977,-500.0,0.00016986,2]
[323462880,1714015858987,-500.0,0.00016986,2]
[323462881,1714015858996,-500.0,0.00016986,2]
[323462882,1714015859005,-2111.77,0.00016986,2]
[323462883,1714015859014,-500.0,0.00016986,2]
[323462884,1714015859024,-280.68448854,0.00016986,2]
[323462885,1714015859035,-500.0,0.00016986,2]
[323462886,1714015859045,-500.0,0.00016986,2]
[323462887,1714015859054,-500.0,0.00016986,2]
[323462888,1714015859064,-561.09,0.00016986,2]
[323462889,1714015859073,-168.46418309,0.00016986,2]
[323462890,1714015859083,-612.38,0.00016986,2]
[323462891,1714015859093,-526.96,0.00016986,2]
[323462892,1714015859102,-500.0,0.00016986,2]
[323462893,1714015859111,-500.0,0.00016986,2]
[323462894,1714015859121,-500.0,0.00016986,2]
[323462895,1714015859131,-500.0,0.00016986,2]
[323462896,1714015859141,-500.0,0.00016986,2]
[323462897,1714015859150,-722.57,0.00016986,2]
[323462898,1714015859159,-345.1267951,0.00016986,2]
[323462899,1714015859167,-500.0,0.00016986,2]
[323462900,1714015859176,-500.0,0.00016986,2]
[323462901,1714015859185,-500.0,0.00016986,2]
[323462902,1714015859194,-500.0,0.00016986,2]
[323462903,1714015859204,-839.34,0.00016986,2]
[323462904,1714015859213,-501.46221278,0.00016986,2]
[323462905,1714015859222,-500.0,0.00016986,2]
[323462906,1714015859231,-833.47,0.00016986,2]
[323462907,1714015859240,-500.0,0.00016986,2]
[323462908,1714015859249,-531.17120196,0.00016986,2]
[323462909,1714015859260,-500.0,0.00016986,2]
[323462910,1714015859271,-500.0,0.00016986,2]
[323462911,1714015859280,-500.0,0.00016986,2]
[323462912,1714015859289,-500.0,0.00016986,2]
[323462913,1714015859300,-500.0,0.00016986,2]
[323462914,1714015859310,-500.0,0.00016986,2]
[323462915,1714015859321,-500.0,0.00016986,2]
[323462916,1714015859331,-500.0,0.00016986,2]
[323462917,1714015859341,-500.0,0.00016986,2]
[323462918,1714015859351,-500.0,0.00016986,2]
[323462919,1714015859360,-500.0,0.00016986,2]
[323462920,1714015859369,-423.40234561,0.00016986,2]
[323462921,1714015859379,-873.43,0.00016986,2]
[323462922,1714015859389,-500.0,0.00016986,2]
[323462923,1714015859398,-205.61528258,0.00016986,2]
[323462924,1714015859409,-500.0,0.00016986,2]
[323462925,1714015859418,-386.53542719,0.00016986,2]
[323462926,1714015859429,-923.2,0.00016986,2]
[323462927,1714015859438,-500.0,0.00016986,2]
[323462928,1714015859448,-500.0,0.00016986,2]
[323462929,1714015859457,-500.0,0.00016986,2]
[323462930,1714015859466,-500.0,0.00016986,2]
[323462931,1714015859475,-609.7,0.00016986,2]
[323462932,1714015859484,-630.55375008,0.00016986,2]
[323462933,1714015859495,-500.0,0.00016986,2]
[323462934,1714015859504,-500.0,0.00016986,2]
[323462935,1714015859515,-500.0,0.00016986,2]
[323462936,1714015859525,-789.46,0.00016986,2]
[323462937,1714015859535,-500.0,0.00016986,2]
[323462938,1714015859545,-637.04,0.00016986,2]
[323462939,1714015859555,-501.38344031,0.00016986,2]
[323462940,1714015859564,-500.0,0.00016986,2]
[323462941,1714015859575,-500.0,0.00016986,2]
[323462942,1714015859584,-500.0,0.00016986,2]
[323462943,1714015859594,-500.0,0.00016986,2]
[323462944,1714015859603,-500.0,0.00016986,2]
[323462945,1714015859612,-522.72945253,0.00016986,2]
[323462946,1714015859621,-708.14,0.00016986,2]
[323462947,1714015859631,-500.0,0.00016986,2]
[323462948,1714015859641,-500.0,0.00016986,2]
[323462949,1714015859650,-414.77047909,0.00016986,2]
[323462950,1714015859660,-500.0,0.00016986,2]
[323462951,1714015859670,-500.0,0.00016986,2]
[323462952,1714015859679,-776.85,0.00016986,2]
[323462953,1714015859689,-500.0,0.00016986,2]
[323462954,1714015859698,-500.0,0.00016986,2]
[323462955,1714015859707,-620.0,0.00016986,2]
[323462956,1714015859716,-500.0,0.00016986,2]
[323462957,1714015859725,-500.0,0.00016986,2]
[323462958,1714015859735,-500.0,0.00016986,2]
[323462959,1714015859744,-500.0,0.00016986,2]
[323462960,1714015859754,-500.0,0.00016986,2]
[323462961,1714015859763,-500.0,0.00016986,2]
[323462962,1714015859772,-500.0,0.00016986,2]
[323462963,1714015859782,-500.0,0.00016986,2]